[Event "4NCL 2019-20"]
[Site "Daventry"]
[Date "2020.01.12"]
[Round "4"]
[White "Bhatia, Kanwal K"]
[Black "Wu, Li"]
[Result "0-1"]
[ECO "B15"]
[WhiteElo "2037"]
[BlackElo "2291"]
[Annotator "ChessBase"]
[PlyCount "56"]
[EventDate "2020.01.11"]
[EventCountry "ENG"]
[SourceTitle "playchess.com"]
[Source "ChessBase"]
[SourceQuality "1"]
[TimeControl "40/6000:3000+30"]

1. e4 {[%emt 0:00:06]} g6 {[%emt 0:00:00]} 2. d4 {[%emt 0:00:00]} Bg7 {[%emt 0:00:00]} 3. Nc3 {[%emt 0:00:00]} c6 {[%emt 0:00:24]} 4. f4 {[%emt 0:00:00]} d5 {[%emt 0:00:00]} 5. e5 {[%emt 0:01:51]} h5 {[%emt 0:00:07]} 6. Nf3 {[%emt 0:03:38]} Nh6 {[%emt 0:01:40]} 7. Be3 {[%emt 0:01:19]} Bg4 {[%emt 0:01:49]} 8. Be2 {[%emt 0:01:21]} e6 {[%emt 0:08:04]} 9. Qd2 {[%emt 0:03:05]} Nf5 {[%emt 0:01:53]} 10. Bf2 {[%emt 0:03:08]} Bf8 {[%emt 0:11:04]} 11. Nd1 {[%emt 0:15:13]} Qb6 {[%emt 0:05:46]} 12. a4 {[%emt 0:14:51]} Bxf3 {[%emt 0:15:01]} 13. Bxf3 {[%emt 0:03:00]} c5 {[%emt 0:00:20]} 14. a5 {[%emt 0:06:36]} Qc7 {[%emt 0:03:19]} 15. dxc5 {[%emt 0:07:38]} Bxc5 {[%emt 0:00:00]} 16. Bxc5 {[%emt 0:00:00]} Qxc5 {[%emt 0:00:00]} 17. Qc3 {[%emt 0:03:33]} Qxc3+ {[%emt 0:00:00]} 18. Nxc3 {[%emt 0:02:26]} Nc6 {[%emt 0:01:38]} 19. Kf2 {[%emt 0:12:14]} Ke7 {[%emt 0:10:43]} 20. Rhc1 {[%emt 0:01:52]} g5 {[%emt 0:05:35]} 21. g3 {[%emt 0:00:13]} h4 {[%emt 0:01:09]} 22. Kg2 {[%emt 0:05:30]} hxg3 {[%emt 0:01:45]} 23. hxg3 {[%emt 0:00:00]} gxf4 {[%emt 0:00:00]} 24. Rh1 {[%emt 0:01:57]} fxg3 {[%emt 0:01:07]} 25. Rae1 {[%emt 0:01:29]} Rxh1 {[%emt 0:01:17]} 26. Rxh1 {[%emt 0:00:28]} Nxe5 {[%emt 0:00:00]} 27. Rh5 {[%emt 0:00:45]} Nxf3 {[%emt 0:02:51]} 28. Kxf3 {[%emt 0:00:09]} Rg8 {[%emt 0:00:37]} 0-1

[Event "4NCL 2019-20"]
[Site "Daventry"]
[Date "2020.01.12"]
[Round "4"]
[White "Andrzejewska, Anna"]
[Black "York-Weaving, Anna"]
[Result "1/2-1/2"]
[ECO "B18"]
[WhiteElo "1974"]
[BlackElo "1739"]
[Annotator "NA"]
[PlyCount "43"]
[EventDate "2020.01.11"]
[EventCountry "ENG"]
[SourceTitle "playchess.com"]
[Source "ChessBase"]
[SourceQuality "1"]
[TimeControl "40/6000:3000+30"]

1. e4 {[%emt 0:00:00]} c6 {[%emt 0:00:22]} 2. d4 {[%emt 0:00:00]} d5 {[%emt 0:00:00]} 3. Nc3 {[%emt 0:00:00]} dxe4 {[%emt 0:00:00]} 4. Nxe4 {[%emt 0:00:00]} Bf5 {[%emt 0:00:00]} 5. Ng3 {[%emt 0:00:00]} Bg6 {[%emt 0:00:00]} 6. h4 {[%emt 0:00:00]} h6 {[%emt 0:00:00]} 7. f4 {[%emt 0:00:00]} e6 {[%emt 0:00:00]} 8. Nf3 {[%emt 0:00:00]} Nd7 {[%emt 0:00:00]} 9. h5 {[%emt 0:00:00]} Bh7 {[%emt 0:00:00]} 10. Bd3 {[%emt 0:00:00]} Bxd3 {[%emt 0:00:00]} 11. Qxd3 {[%emt 0:00:00]} Ngf6 {[%emt 0:00:41]} 12. Bd2 {[%emt 0:00:49]} Qc7 {[%emt 0:08:01]} 13. O-O-O {[%emt 0:02:05]} O-O-O {[%emt 0:02:44]} 14. Qe2 {[%emt 0:06:44]} Bd6 {[%emt 0:09:56]} 15. Ne5 {[%emt 0:01:53]} Nb6 {[%emt 0:00:05]} 16. Rhe1 {[%emt 0:45:04]} c5 {[%emt 0:02:28]} 17. Be3 {[%emt 0:06:19]} c4 {[%emt 0:04:39]} 18. c3 {[%emt 0:01:59]} Rhe8 {[%emt 0:16:25]} 19. Qf3 {[%emt 0:04:25]} Nbd5 {[%emt 0:01:36]} 20. Qe2 {[%emt 0:05:02]} b5 {[%emt 0:09:27]} 21. Bd2 {[%emt 0:03:02]} a5 {[%emt 0:01:15]} 22. Kb1 {[%emt 0:01:18]} 1/2-1/2

[Event "4NCL 2019-20"]
[Site "Daventry"]
[Date "2020.02.08"]
[Round "5"]
[White "Speelman, Jon S"]
[Black "Bisby, Daniel L"]
[Result "1/2-1/2"]
[ECO "E62"]
[WhiteElo "2509"]
[BlackElo "2314"]
[Annotator "ChessBase"]
[PlyCount "47"]
[EventDate "2020.01.11"]
[EventCountry "ENG"]
[SourceTitle "playchess.com"]
[Source "ChessBase"]
[SourceQuality "1"]
[TimeControl "40/6000:3000+30"]

1. d4 {[%emt 0:00:00]} Nf6 {[%emt 0:00:00]} 2. Nf3 {[%emt 0:00:00]} g6 {[%emt 0:00:00]} 3. g3 {[%emt 0:00:00]} Bg7 {[%emt 0:00:00]} 4. Bg2 {[%emt 0:00:00]} O-O {[%emt 0:00:00]} 5. c4 {[%emt 0:00:00]} d6 {[%emt 0:00:00]} 6. O-O {[%emt 0:00:46]} Nc6 {[%emt 0:00:51]} 7. Nc3 {[%emt 0:00:00]} e5 {[%emt 0:01:20]} 8. d5 {[%emt 0:02:28]} Nb8 {[%emt 0:00:49]} 9. Ne1 {[%emt 0:01:16]} a5 {[%emt 0:01:33]} 10. Nd3 {[%emt 0:00:27]} Na6 {[%emt 0:01:08]} 11. a3 {[%emt 0:03:51]} Nd7 {[%emt 0:02:33]} 12. Rb1 {[%emt 0:04:04]} f5 {[%emt 0:03:45]} 13. Bd2 {[%emt 0:05:11]} e4 {[%emt 0:12:13]} 14. Nf4 {[%emt 0:00:00]} Ne5 {[%emt 0:00:00]} 15. b3 {[%emt 0:00:42]} Qe8 {[%emt 0:05:30]} 16. Qc2 {[%emt 0:08:35]} g5 {[%emt 0:05:18]} 17. Ne6 {[%emt 0:01:03]} Bxe6 {[%emt 0:00:00]} 18. dxe6 {[%emt 0:00:00]} Nc5 {[%emt 0:01:14]} 19. Bxg5 {[%emt 0:08:00]} Nxe6 {[%emt 0:00:26]} 20. Bd2 {[%emt 0:01:27]} Qh5 {[%emt 0:03:08]} 21. Rbe1 {[%emt 0:00:30]} Rae8 {[%emt 0:03:10]} 22. Nd5 {[%emt 0:00:49]} a4 {[%emt 0:10:59]} 23. Nf4 {[%emt 0:03:42]} Qf7 {[%emt 0:02:59]} 24. Nxe6 {[%emt 0:02:55]} 1/2-1/2

[Event "4NCL 2019-20"]
[Site "Daventry"]
[Date "2020.02.08"]
[Round "5"]
[White "Cyborowski, Lukasz"]
[Black "Povah, Nigel E"]
[Result "1-0"]
[ECO "D32"]
[WhiteElo "2505"]
[BlackElo "2284"]
[Annotator "ChessBase"]
[PlyCount "25"]
[EventDate "2020.01.11"]
[EventCountry "ENG"]
[SourceTitle "playchess.com"]
[Source "ChessBase"]
[SourceQuality "1"]
[TimeControl "40/6000:3000+30"]

1. d4 {[%emt 0:00:00]} d5 {[%emt 0:01:44]} 2. Nf3 {[%emt 0:00:00]} Nf6 {[%emt 0:00:00]} 3. e3 {[%emt 0:01:16]} c5 {[%emt 0:04:36]} 4. c4 {[%emt 0:02:45]} e6 {[%emt 0:03:30]} 5. Nc3 {[%emt 0:02:52]} Nc6 {[%emt 0:05:23]} 6. cxd5 {[%emt 0:01:02]} exd5 {[%emt 0:00:58]} 7. Bb5 {[%emt 0:00:00]} a6 {[%emt 0:12:20]} 8. Bxc6+ {[%emt 0:00:00]} bxc6 {[%emt 0:00:00]} 9. O-O {[%emt 0:00:30]} Qc7 {[%emt 0:11:05]} 10. h3 {[%emt 0:19:46]} h6 {[%emt 0:07:35]} 11. dxc5 {[%emt 0:02:59]} Bxc5 {[%emt 0:00:45]} 12. b3 {[%emt 0:00:00]} O-O {[%emt 0:07:21]} 13. Bb2 {[%emt 0:00:00]} 1-0

[Event "4NCL 2019-20"]
[Site "Daventry"]
[Date "2020.02.08"]
[Round "5"]
[White "Antoniewski, Rafal"]
[Black "Kilpatrick, Callum"]
[Result "1/2-1/2"]
[ECO "A05"]
[WhiteElo "2496"]
[BlackElo "2363"]
[Annotator "ChessBase"]
[PlyCount "113"]
[EventDate "2020.01.11"]
[EventCountry "ENG"]
[SourceTitle "playchess.com"]
[Source "ChessBase"]
[SourceQuality "1"]
[TimeControl "40/6000:3000+30"]

1. Nf3 {[%emt 0:00:00]} Nf6 {[%emt 0:00:00]} 2. g3 {[%emt 0:00:00]} g6 {[%emt 0:01:40]} 3. b3 {[%emt 0:00:05]} Bg7 {[%emt 0:00:00]} 4. Bb2 {[%emt 0:00:00]} O-O {[%emt 0:00:00]} 5. Bg2 {[%emt 0:00:00]} d5 {[%emt 0:00:00]} 6. c4 {[%emt 0:02:41]} dxc4 {[%emt 0:00:28]} 7. bxc4 {[%emt 0:00:00]} c5 {[%emt 0:00:00]} 8. O-O {[%emt 0:03:03]} Nc6 {[%emt 0:00:18]} 9. d3 {[%emt 0:01:24]} Bf5 {[%emt 0:12:42]} 10. Nbd2 {[%emt 0:14:30]} Qc7 {[%emt 0:08:04]} 11. Rb1 {[%emt 0:03:51]} Rad8 {[%emt 0:02:00]} 12. Bc3 {[%emt 0:07:51]} b6 {[%emt 0:03:43]} 13. Qc1 {[%emt 0:08:15]} e5 {[%emt 0:11:41]} 14. Qb2 {[%emt 0:04:06]} Nd4 {[%emt 0:00:22]} 15. Rfe1 {[%emt 0:00:28]} Rfe8 {[%emt 0:13:49]} 16. Ng5 {[%emt 0:13:52]} Bg4 {[%emt 0:04:33]} 17. Nf1 {[%emt 0:03:58]} h6 {[%emt 0:05:36]} 18. Ne4 {[%emt 0:00:00]} Nxe4 {[%emt 0:00:00]} 19. dxe4 {[%emt 0:00:00]} Qc8 {[%emt 0:00:36]} 20. Ne3 {[%emt 0:00:25]} h5 {[%emt 0:00:20]} 21. Nd5 {[%emt 0:02:32]} h4 {[%emt 0:06:45]} 22. f3 {[%emt 0:04:08]} Bh3 {[%emt 0:01:10]} 23. e3 {[%emt 0:00:48]} Nc6 {[%emt 0:05:19]} 24. gxh4 {[%emt 0:02:14]} Ne7 {[%emt 0:05:22]} 25. Red1 {[%emt 0:08:51]} Nxd5 {[%emt 0:00:00]} 26. exd5 {[%emt 0:00:52]} Bxg2 {[%emt 0:00:04]} 27. Qxg2 {[%emt 0:00:43]} Qf5 {[%emt 0:02:18]} 28. e4 {[%emt 0:00:56]} Qh5 {[%emt 0:00:00]} 29. Qg4 {[%emt 0:00:13]} Qh7 {[%emt 0:02:10]} 30. Kh1 {[%emt 0:01:37]} Bf6 {[%emt 0:02:01]} 31. f4 {[%emt 0:02:19]} Qh8 {[%emt 0:05:55]} 32. Rf1 {[%emt 0:02:27]} Rd6 {[%emt 0:00:00]} 33. Rf3 {[%emt 0:00:28]} Re7 {[%emt 0:02:15]} 34. Rbf1 {[%emt 0:02:05]} exf4 {[%emt 0:00:09]} 35. Qxf4 {[%emt 0:00:00]} Be5 {[%emt 0:00:00]} 36. Bxe5 {[%emt 0:01:30]} Qxe5 {[%emt 0:00:00]} 37. Qxe5 {[%emt 0:00:00]} Rxe5 {[%emt 0:00:00]} 38. Rxf7 {[%emt 0:00:00]} Rd8 {[%emt 0:00:00]} 39. R7f4 {[%emt 0:00:00]} Rde8 {[%emt 0:00:00]} 40. Re1 {[%emt 0:00:00]} b5 {[%emt 0:00:00]} 41. cxb5 {[%emt 0:50:20]} Rxd5 {[%emt 0:49:28]} 42. Rg1 {[%emt 0:00:10]} Rd2 {[%emt 0:00:00]} 43. Rg3 {[%emt 0:02:43]} g5 44. Rxg5+ {[%emt 0:00:00]} Kh7 {[%emt 0:00:00]} 45. Rg2 {[%emt 0:00:00]} Rd1+ {[%emt 0:00:00]} 46. Rg1 {[%emt 0:00:00]} Rd2 {[%emt 0:00:00]} 47. Rf5 {[%emt 0:00:00]} Kh6 {[%emt 0:00:00]} 48. e5 {[%emt 0:00:00]} c4 {[%emt 0:00:00]} 49. Rf6+ {[%emt 0:00:00]} Kh7 {[%emt 0:00:00]} 50. Rf7+ {[%emt 0:00:00]} Kh6 {[%emt 0:00:00]} 51. h5 {[%emt 0:00:00]} Rxe5 {[%emt 0:00:00]} 52. Rg6+ {[%emt 0:00:00]} Kxh5 {[%emt 0:00:00]} 53. Rg1 {[%emt 0:00:00]} Kh6 {[%emt 0:00:00]} 54. Rf8 {[%emt 0:00:00]} Kh7 {[%emt 0:00:00]} 55. Rf7+ {[%emt 0:03:44]} Kh6 {[%emt 0:00:00]} 56. Rf6+ {[%emt 0:01:13]} Kh7 {[%emt 0:00:00]} 57. Rf7+ {[%emt 0:01:11]} 1/2-1/2

[Event "4NCL 2019-20"]
[Site "Daventry"]
[Date "2020.02.08"]
[Round "5"]
[White "Schneider, Dmitry"]
[Black "Reimanis, Ritvars"]
[Result "1/2-1/2"]
[ECO "B56"]
[WhiteElo "2475"]
[BlackElo "2370"]
[Annotator "ChessBase"]
[PlyCount "54"]
[EventDate "2020.01.11"]
[EventCountry "ENG"]
[SourceTitle "playchess.com"]
[Source "ChessBase"]
[SourceQuality "1"]
[TimeControl "40/6000:3000+30"]

1. e4 {[%emt 0:00:00]} c5 {[%emt 0:00:00]} 2. Nf3 {[%emt 0:00:00]} Nc6 {[%emt 0:00:00]} 3. d4 {[%emt 0:00:00]} cxd4 {[%emt 0:00:00]} 4. Nxd4 {[%emt 0:00:00]} Nf6 {[%emt 0:00:00]} 5. Nc3 {[%emt 0:00:00]} d6 {[%emt 0:00:00]} 6. g3 {[%emt 0:00:00]} e5 {[%emt 0:00:00]} 7. Nde2 {[%emt 0:00:00]} Be6 {[%emt 0:00:07]} 8. Bg2 {[%emt 0:00:00]} Be7 {[%emt 0:00:00]} 9. O-O {[%emt 0:00:00]} Rc8 {[%emt 0:00:00]} 10. Nd5 {[%emt 0:09:10]} Bxd5 {[%emt 0:01:23]} 11. exd5 {[%emt 0:00:00]} Nb8 {[%emt 0:00:02]} 12. h3 {[%emt 0:03:58]} Nbd7 {[%emt 0:04:58]} 13. a4 {[%emt 0:03:55]} Qc7 {[%emt 0:02:24]} 14. c3 {[%emt 0:01:15]} a5 {[%emt 0:06:41]} 15. g4 {[%emt 0:01:21]} O-O {[%emt 0:04:24]} 16. Ng3 {[%emt 0:00:00]} Nb6 {[%emt 0:03:29]} 17. Nf5 {[%emt 0:08:42]} Bd8 {[%emt 0:05:59]} 18. b3 {[%emt 0:08:43]} g6 {[%emt 0:00:00]} 19. Nh6+ {[%emt 0:01:14]} Kg7 {[%emt 0:00:00]} 20. c4 {[%emt 0:00:40]} Nbd7 {[%emt 0:00:27]} 21. Be3 {[%emt 0:14:54]} Ng8 {[%emt 0:07:05]} 22. Nxg8 {[%emt 0:00:39]} Kxg8 {[%emt 0:00:00]} 23. f4 {[%emt 0:04:46]} exf4 {[%emt 0:00:49]} 24. Bxf4 {[%emt 0:00:00]} Bf6 {[%emt 0:00:00]} 25. Ra2 {[%emt 0:00:00]} Qb6+ {[%emt 0:01:54]} 26. Kh1 {[%emt 0:00:13]} Be5 {[%emt 0:00:00]} 27. Bxe5 {[%emt 0:01:09]} Nxe5 {[%emt 0:00:00]} 1/2-1/2

[Event "4NCL 2019-20"]
[Site "Daventry"]
[Date "2020.02.08"]
[Round "5"]
[White "Paehtz, Elisabeth"]
[Black "Clarke, Stuart W"]
[Result "1/2-1/2"]
[ECO "E00"]
[WhiteElo "2467"]
[BlackElo "2195"]
[Annotator "ChessBase"]
[PlyCount "93"]
[EventDate "2020.01.11"]
[EventCountry "ENG"]
[SourceTitle "playchess.com"]
[Source "ChessBase"]
[SourceQuality "1"]
[TimeControl "40/6000:3000+30"]

1. d4 {[%emt 0:00:00]} e6 {[%emt 0:00:00]} 2. c4 {[%emt 0:00:00]} Nf6 {[%emt 0:00:00]} 3. g3 {[%emt 0:00:00]} Bb4+ {[%emt 0:00:00]} 4. Bd2 {[%emt 0:00:00]} a5 {[%emt 0:00:00]} 5. Bg2 {[%emt 0:00:00]} d6 {[%emt 0:03:40]} 6. e3 {[%emt 0:00:00]} Nc6 {[%emt 0:08:06]} 7. Ne2 {[%emt 0:00:00]} e5 {[%emt 0:03:53]} 8. d5 {[%emt 0:00:00]} Bxd2+ {[%emt 0:03:23]} 9. Qxd2 {[%emt 0:00:00]} Nb8 {[%emt 0:03:28]} 10. Nbc3 {[%emt 0:00:00]} Na6 {[%emt 0:00:36]} 11. O-O {[%emt 0:00:14]} O-O {[%emt 0:05:56]} 12. f4 {[%emt 0:10:33]} Nc5 {[%emt 0:04:09]} 13. fxe5 {[%emt 0:02:03]} dxe5 {[%emt 0:00:00]} 14. e4 {[%emt 0:00:00]} b6 {[%emt 0:08:05]} 15. Qg5 {[%emt 0:02:47]} Qe7 {[%emt 0:04:43]} 16. Qe3 {[%emt 0:12:10]} Ne8 {[%emt 0:06:19]} 17. b3 {[%emt 0:00:00]} Nd6 {[%emt 0:00:00]} 18. Nc1 {[%emt 0:00:41]} Bd7 {[%emt 0:05:32]} 19. Nd3 {[%emt 0:00:00]} Nxd3 {[%emt 0:00:12]} 20. Qxd3 {[%emt 0:00:00]} Nb7 {[%emt 0:01:24]} 21. Qe3 {[%emt 0:00:43]} Qb4 {[%emt 0:00:40]} 22. Rfe1 {[%emt 0:08:30]} a4 {[%emt 0:01:41]} 23. a3 {[%emt 0:00:54]} Qc5 {[%emt 0:10:42]} 24. Qxc5 {[%emt 0:03:46]} Nxc5 {[%emt 0:00:00]} 25. b4 {[%emt 0:00:00]} Nb3 {[%emt 0:00:00]} 26. Ra2 {[%emt 0:01:32]} g6 {[%emt 0:04:01]} 27. Bf1 {[%emt 0:07:07]} h5 {[%emt 0:02:24]} 28. Rf2 {[%emt 0:01:28]} Kg7 {[%emt 0:00:33]} 29. Nb1 {[%emt 0:01:23]} f6 {[%emt 0:07:45]} 30. Re3 {[%emt 0:02:12]} Nd4 {[%emt 0:00:59]} 31. Nc3 {[%emt 0:00:00]} Rh8 {[%emt 0:00:42]} 32. h4 {[%emt 0:01:05]} Rhe8 {[%emt 0:01:45]} 33. Kh2 {[%emt 0:00:11]} c5 {[%emt 0:04:13]} 34. Re1 {[%emt 0:04:45]} Bg4 {[%emt 0:01:48]} 35. Rb1 {[%emt 0:00:00]} Nb3 {[%emt 0:00:08]} 36. Nxa4 {[%emt 0:01:43]} Nd2 {[%emt 0:01:28]} 37. Rxd2 {[%emt 0:00:00]} Rxa4 {[%emt 0:00:00]} 38. bxc5 {[%emt 0:03:38]} bxc5 {[%emt 0:00:00]} 39. Rb7+ {[%emt 0:00:00]} Kh6 {[%emt 0:00:00]} 40. Rc7 {[%emt 0:01:56]} Rxa3 {[%emt 0:00:00]} 41. d6 {[%emt 0:54:33]} Rd8 {[%emt 0:08:05]} 42. Bh3 {[%emt 0:00:00]} Bf3 {[%emt 0:05:30]} 43. Bg2 {[%emt 0:00:00]} Bg4 {[%emt 0:00:37]} 44. Bh3 {[%emt 0:00:00]} Bf3 {[%emt 0:01:23]} 45. Kg1 {[%emt 0:00:00]} Bxe4 {[%emt 0:07:44]} 46. d7 {[%emt 0:00:00]} f5 {[%emt 0:02:41]} 47. Rc8 {[%emt 0:07:47]} 1/2-1/2

[Event "4NCL 2019-20"]
[Site "Daventry"]
[Date "2020.02.08"]
[Round "5"]
[White "Williams, Simon K"]
[Black "Ledger, Andrew J"]
[Result "1/2-1/2"]
[ECO "A30"]
[WhiteElo "2461"]
[BlackElo "2347"]
[Annotator "ChessBase"]
[PlyCount "38"]
[EventDate "2020.01.11"]
[EventCountry "ENG"]
[SourceTitle "playchess.com"]
[Source "ChessBase"]
[SourceQuality "1"]
[TimeControl "40/6000:3000+30"]

1. Nf3 {[%emt 0:00:00]} Nf6 {[%emt 0:00:00]} 2. c4 {[%emt 0:00:00]} c5 {[%emt 0:00:00]} 3. b3 {[%emt 0:00:20]} g6 {[%emt 0:01:12]} 4. Bb2 {[%emt 0:00:05]} Bg7 {[%emt 0:00:00]} 5. g3 {[%emt 0:01:51]} b6 {[%emt 0:04:36]} 6. Bg2 {[%emt 0:03:44]} Bb7 {[%emt 0:00:00]} 7. O-O {[%emt 0:00:00]} O-O {[%emt 0:00:13]} 8. e3 {[%emt 0:06:33]} Nc6 {[%emt 0:05:30]} 9. d4 {[%emt 0:01:24]} cxd4 {[%emt 0:01:52]} 10. Nxd4 {[%emt 0:00:00]} Qc8 {[%emt 0:06:20]} 11. Nd2 {[%emt 0:07:02]} Nxd4 {[%emt 0:02:51]} 12. Bxd4 {[%emt 0:02:18]} Bxg2 {[%emt 0:00:58]} 13. Kxg2 {[%emt 0:00:00]} Qc6+ {[%emt 0:04:42]} 14. Qf3 {[%emt 0:00:00]} Rfd8 {[%emt 0:02:58]} 15. Rad1 {[%emt 0:10:04]} d5 {[%emt 0:09:13]} 16. cxd5 {[%emt 0:02:13]} Qxd5 {[%emt 0:02:36]} 17. Bxf6 {[%emt 0:01:10]} Qxf3+ {[%emt 0:01:43]} 18. Kxf3 {[%emt 0:00:01]} Bxf6 {[%emt 0:01:53]} 19. Ne4 {[%emt 0:03:51]} Bb2 {[%emt 0:00:00]} 1/2-1/2

[Event "4NCL 2019-20"]
[Site "Daventry"]
[Date "2020.02.08"]
[Round "5"]
[White "Hebden, Mark L"]
[Black "Benhamida, Aisha"]
[Result "1-0"]
[ECO "B08"]
[WhiteElo "2434"]
[BlackElo "1577"]
[Annotator "ChessBase"]
[PlyCount "35"]
[EventDate "2020.01.11"]
[EventCountry "ENG"]
[SourceTitle "playchess.com"]
[Source "ChessBase"]
[SourceQuality "1"]
[TimeControl "40/6000:3000+30"]

1. d4 {[%emt 0:00:00]} Nf6 {[%emt 0:00:00]} 2. Nc3 {[%emt 0:00:00]} g6 {[%emt 0:00:00]} 3. e4 {[%emt 0:00:00]} d6 {[%emt 0:00:00]} 4. Nf3 {[%emt 0:00:00]} Bg7 {[%emt 0:00:00]} 5. Be3 {[%emt 0:00:00]} O-O {[%emt 0:00:21]} 6. Qd2 {[%emt 0:00:00]} Nbd7 {[%emt 0:01:48]} 7. Bh6 {[%emt 0:00:00]} a6 {[%emt 0:12:48]} 8. O-O-O {[%emt 0:08:05]} Nb6 {[%emt 0:06:32]} 9. h3 {[%emt 0:04:18]} Be6 {[%emt 0:01:53]} 10. Qg5 {[%emt 0:03:55]} c6 {[%emt 0:06:06]} 11. Qh4 {[%emt 0:01:57]} Qc7 {[%emt 0:09:13]} 12. Ng5 {[%emt 0:02:15]} Nbd7 {[%emt 0:09:42]} 13. f4 {[%emt 0:10:50]} Rfe8 {[%emt 0:09:56]} 14. Bxg7 {[%emt 0:02:12]} Kxg7 {[%emt 0:02:18]} 15. e5 {[%emt 0:00:00]} Nh5 {[%emt 0:02:04]} 16. g4 {[%emt 0:00:25]} h6 {[%emt 0:00:00]} 17. Nxe6+ {[%emt 0:00:00]} fxe6 {[%emt 0:00:00]} 18. gxh5 {[%emt 0:00:00]} 1-0

[Event "4NCL 2019-20"]
[Site "Daventry"]
[Date "2020.02.08"]
[Round "5"]
[White "Kirk, Ezra"]
[Black "Webb, Laurence E"]
[Result "1-0"]
[ECO "B12"]
[WhiteElo "2430"]
[BlackElo "2307"]
[Annotator "ChessBase"]
[PlyCount "65"]
[EventDate "2020.01.11"]
[EventCountry "ENG"]
[SourceTitle "playchess.com"]
[Source "ChessBase"]
[SourceQuality "1"]
[TimeControl "40/6000:3000+30"]

1. e4 {[%emt 0:00:00]} c6 {[%emt 0:00:00]} 2. d4 {[%emt 0:00:00]} d5 {[%emt 0:00:00]} 3. e5 {[%emt 0:00:00]} c5 {[%emt 0:00:00]} 4. Nf3 {[%emt 0:00:00]} cxd4 {[%emt 0:00:00]} 5. Nxd4 {[%emt 0:00:00]} e6 {[%emt 0:00:00]} 6. c4 {[%emt 0:00:34]} Bc5 {[%emt 0:05:09]} 7. Nb3 {[%emt 0:20:18]} Bb6 {[%emt 0:04:07]} 8. Qg4 {[%emt 0:10:12]} g6 {[%emt 0:03:09]} 9. c5 {[%emt 0:09:15]} Bc7 {[%emt 0:03:03]} 10. Bg5 {[%emt 0:01:48]} f6 {[%emt 0:11:26]} 11. exf6 {[%emt 0:02:49]} Nxf6 {[%emt 0:00:18]} 12. Qh4 {[%emt 0:01:37]} O-O {[%emt 0:00:50]} 13. Nc3 {[%emt 0:00:00]} Nbd7 {[%emt 0:13:17]} 14. Be2 {[%emt 0:01:49]} Qe7 {[%emt 0:11:27]} 15. O-O {[%emt 0:01:11]} Bd8 {[%emt 0:07:09]} 16. Rac1 {[%emt 0:02:51]} a6 {[%emt 0:04:03]} 17. Rfe1 {[%emt 0:01:46]} Qf7 {[%emt 0:00:00]} 18. Bf3 {[%emt 0:01:21]} Be7 {[%emt 0:03:23]} 19. c6 {[%emt 0:04:55]} bxc6 {[%emt 0:02:08]} 20. Nd4 {[%emt 0:00:00]} Nb8 {[%emt 0:10:06]} 21. Na4 {[%emt 0:00:00]} Bd8 {[%emt 0:02:21]} 22. Nc5 {[%emt 0:03:46]} Bb6 {[%emt 0:02:56]} 23. Ndxe6 {[%emt 0:13:42]} Bxe6 {[%emt 0:01:23]} 24. Rxe6 {[%emt 0:00:23]} Ne4 {[%emt 0:07:55]} 25. Bxe4 {[%emt 0:13:46]} Bxc5 {[%emt 0:01:02]} 26. Rf6 {[%emt 0:00:00]} Qg7 {[%emt 0:01:26]} 27. Rxc5 {[%emt 0:00:10]} dxe4 {[%emt 0:00:10]} 28. Rxf8+ {[%emt 0:00:00]} Qxf8 {[%emt 0:00:00]} 29. Re5 {[%emt 0:00:00]} Ra7 {[%emt 0:02:04]} 30. Qxe4 {[%emt 0:00:40]} Qd6 {[%emt 0:00:08]} 31. Re8+ {[%emt 0:00:37]} Kf7 {[%emt 0:00:00]} 32. Rd8 {[%emt 0:00:36]} Qc7 {[%emt 0:00:27]} 33. Qe8+ {[%emt 0:00:00]} 1-0

[Event "4NCL 2019-20"]
[Site "Daventry"]
[Date "2020.02.08"]
[Round "5"]
[White "Greet, Andrew N"]
[Black "Lee, Richard W Y"]
[Result "1-0"]
[ECO "E09"]
[WhiteElo "2425"]
[BlackElo "2130"]
[Annotator "NA"]
[PlyCount "69"]
[EventDate "2020.01.11"]
[EventCountry "ENG"]
[SourceTitle "playchess.com"]
[Source "ChessBase"]
[SourceQuality "1"]
[TimeControl "40/6000:3000+30"]

1. d4 {[%emt 0:00:00]} d5 {[%emt 0:00:00]} 2. Nf3 {[%emt 0:00:00]} Nf6 {[%emt 0:00:00]} 3. c4 {[%emt 0:00:00]} e6 {[%emt 0:00:00]} 4. g3 {[%emt 0:00:00]} Be7 {[%emt 0:00:00]} 5. Bg2 {[%emt 0:00:00]} O-O {[%emt 0:00:00]} 6. O-O {[%emt 0:00:00]} c6 {[%emt 0:00:00]} 7. Qc2 {[%emt 0:00:00]} Nbd7 {[%emt 0:00:00]} 8. Nbd2 {[%emt 0:00:00]} b6 {[%emt 0:00:00]} 9. e4 {[%emt 0:00:00]} Bb7 {[%emt 0:00:00]} 10. e5 {[%emt 0:00:00]} Ne8 {[%emt 0:00:00]} 11. cxd5 {[%emt 0:00:00]} cxd5 {[%emt 0:00:00]} 12. Re1 {[%emt 0:00:00]} Rc8 {[%emt 0:00:00]} 13. Qa4 {[%emt 0:00:00] E09: Closed Catalan: Main Line: 7 Qc2 c6 8 Nbd2.} Bc6 {[%emt 0:00:00]} 14. Qb3 {[%emt 0:00:00]} b5 {[%emt 0:00:00]} 15. Bf1 {[%emt 0:05:22]} Qb6 {[%emt 0:00:00]} 16. Bd3 {[%emt 0:08:30]} b4 {[%emt 0:00:48] [#]} 17. Qc2 $146 {[%emt 0:02:49]} ({Predecessor:} 17. Nf1 h6 18. Bb1 Bb5 19. Ne3 f5 20. Ng2 Rf7 21. h4 Nf8 22. Be3 a5 23. Qd1 {1-0 (70) Kozul,Z (2576)-Kovacevic,B (2493) Vukovar 2005}) 17... g6 {[%emt 0:11:23]} 18. Nf1 {[%emt 0:00:19]} Bb7 {[%emt 0:11:48]} 19. Qe2 {[%emt 0:00:14]} Nb8 {[%emt 0:01:31]} 20. h4 {[%emt 0:01:42]} Ba6 {[%emt 0:11:49]} 21. Bg5 {[%emt 0:00:33]} Bxd3 {[%emt 0:07:34]} 22. Qxd3 {[%emt 0:00:00]} f6 {[%emt 0:05:48]} 23. exf6 {[%emt 0:07:24]} Bxf6 {[%emt 0:01:41]} 24. Rac1 {[%emt 0:03:05]} Rxc1 {[%emt 0:05:17]} 25. Bxc1 {[%emt 0:03:23]} Nc7 {[%emt 0:08:38]} 26. Bf4 {[%emt 0:04:11]} (26. N1h2 $16) 26... Nb5 $1 {[%emt 0:01:53]} 27. Be3 {[%emt 0:05:47]} Nc6 {[%emt 0:04:02]} 28. Rd1 {[%emt 0:00:00]} a5 {[%emt 0:06:19]} 29. g4 {[%emt 0:06:10]} Kh8 $16 {[%emt 0:04:43]} (29... Qb7 $11) 30. Ng3 {[%emt 0:00:47]} Bg7 {[%emt 0:06:19]} 31. Kg2 {[%emt 0:00:12]} Rxf3 {[%emt 0:02:55]} 32. Kxf3 {[%emt 0:00:00]} Nbxd4+ {[%emt 0:00:00]} 33. Kg2 {[%emt 0:00:00]} Qd8 {[%emt 0:01:49]} 34. Rc1 {[%emt 0:02:53]} Qb6 {[%emt 0:02:54]} 35. Bxd4 {[%emt 0:00:50]} 1-0